fUST/lending_fUST_20241012
["ID","MTS","AMOUNT","RATE_DAILY","PERIOD"]
[340131043,1728665442715,-2000.0,0.00049169,10]
[340131044,1728665442724,-153.0,0.00049258,120]
[340131045,1728665442733,-153.0,0.00049258,120]
[340131047,1728665442742,-153.0,0.00049258,120]
[340131049,1728665442751,-153.0,0.00049258,120]
[340131050,1728665442760,-153.0,0.00049258,120]
[340131052,1728665442770,-153.0,0.00049259,120]
[340131053,1728665442779,-153.0,0.00049259,120]
[340131054,1728665442788,-153.0,0.00049259,120]
[340131056,1728665442799,-153.0,0.00049259,120]
[340131058,1728665442809,-153.0,0.00049267,120]
[340131059,1728665442819,-151.0,0.00049315,120]
[340131060,1728665442828,-151.0,0.00049315,120]
[340131061,1728665442837,-151.0,0.00049315,120]
[340131062,1728665442847,-151.0,0.00049315,120]
[340131064,1728665442856,-150.112233,0.000495,14]
[340131065,1728665442865,-400.0,0.00049517,2]
[340131066,1728665442875,-151.0,0.00049567,60]
[340131067,1728665442885,-4520.30923417,0.00049663,7]
[340131068,1728665442894,-17779.4032376,0.00049663,7]
[340131069,1728665442904,-1000.0,0.000498,90]
[340131070,1728665442914,-1000.0,0.000498,120]
[340131071,1728665442924,-4520.30923417,0.0004998,7]
[340131072,1728665442933,-17779.4032376,0.0004998,7]
[340131073,1728665442944,-4520.30923417,0.0004999,7]
[340131074,1728665442953,-17779.4032376,0.0004999,7]
[340131075,1728665442963,-49456.81149332,0.0005,60]
[340131076,1728665442972,-310.0,0.0005,30]
[340131077,1728665442981,-1128.23,0.0005,30]
[340131078,1728665442991,-2200.0,0.0005,30]
[340131079,1728665443000,-191.333,0.0005,120]
[340131080,1728665443009,-191.333,0.0005,120]
[340131081,1728665443019,-191.334,0.0005,120]
[340131083,1728665443029,-5000.0,0.0005,60]
[340131087,1728665443040,-170.0,0.0005,120]
[340131091,1728665443050,-196.163953,0.00050144,120]
[340131094,1728665443059,-300.0,0.00050363,30]
[340131097,1728665443068,-222.736,0.00050363,30]
[340131100,1728665443076,-150.112233,0.000506,11]
[340131102,1728665443086,-17390.28945538,0.0005102,120]
[340131104,1728665443095,-386.877,0.00051106,120]
[340131106,1728665443104,-150.112233,0.000517,11]
[340131108,1728665443113,-2500.0,0.00051761,10]
[340131111,1728665443123,-191.3210656,0.00052,120]
[340131114,1728665443132,-1000.0,0.00052,120]
[340131117,1728665443141,-317.40461023,0.00052054,30]
[340131120,1728665443151,-151.0,0.00052114,90]
[340131123,1728665443161,-3088.70835066,0.00052509,28]
[340131126,1728665443170,-150.112233,0.000528,15]
[340131129,1728665443179,-600.0,0.000528,2]
[340131132,1728665443188,-150.0,0.00053,14]
[340131134,1728665443197,-179.20443599,0.000533,120]
[340131136,1728665443207,-600.0,0.0005335,2]
[340131138,1728665443216,-1000.0,0.000538,120]
[340131140,1728665443225,-150.112233,0.000539,14]
[340131142,1728665443235,-601.56927212,0.000539,2]
[340131144,1728665443244,-4520.30923417,0.0005398,8]
[340131146,1728665443253,-17779.4032376,0.0005398,8]
[340131147,1728665443262,-11471.579527,0.00054,120]
[340131148,1728665443271,-1000.02650872,0.00054,120]
[340131149,1728665443281,-1983.49524924,0.00054246,2]
[340131150,1728665443290,-154.43334356,0.00054309,95]
[340131151,1728665443299,-400.0,0.00054376,2]
[340131152,1728665443309,-3000.0,0.00054556,10]
[340131153,1728665443320,-151.0,0.00054661,90]
[340131154,1728665443329,-1128.23,0.000547,30]
[340131155,1728665443339,-4520.30923417,0.00054748,8]
[340131156,1728665443349,-22601.5461709,0.00054758,8]
[340131157,1728665443361,-126326.63399184,0.00054768,2]
[340131158,1728665443516,-1872.7874282,0.00054768,2]
[340131159,1728665443542,-1983.49524924,0.00047661,120]
[340131204,1728665446721,-150.084,0.00045106,2]
[340131205,1728665446735,-69641.74910154,0.00047661,120]
[340131207,1728665608667,185.133605,0.00031802,30]
[340131208,1728665645147,163.46996,0.00026986,2]
[340131209,1728665645545,163.46996,0.00033457,2]
[340131210,1728665645973,163.46996,0.00039927,2]
[340131211,1728665726728,930.619816,0.0001,2]
[340131218,1728666003540,500.0,0.0001,2]
[340131220,1728666004503,500.0,0.0001,2]
[340131221,1728666004883,500.0,0.0001,2]
[340131222,1728666005262,156.81983682,0.0001,2]
[340131223,1728666011477,3960.78896515,0.0004,2]
[340131225,1728666141675,165.513336,0.00026986,2]
[340131226,1728666142057,165.513336,0.0003432,2]
[340131227,1728666211270,1781.5820994,0.00039012,2]
[340131228,1728666387887,303.176752,0.00039572,2]
[340131230,1728666399132,-250.0,0.00040288,2]
[340131231,1728666399157,-171.617925,0.0004034,2]
[340131232,1728666399180,-707.2318588,0.0004035,2]
[340131233,1728666399204,-171.617925,0.0004038,2]
[340131234,1728666399227,-171.617925,0.0004042,2]
[340131235,1728666399252,-171.617925,0.00040461,2]
[340131236,1728666399275,-171.617925,0.00040501,2]
[340131237,1728666399298,-171.617925,0.00040541,2]
[340131238,1728666399328,-6388.6389352,0.00040958,120]
[340131240,1728666447443,-300.0,0.00041246,30]
[340131241,1728666447467,-400.0,0.00041246,5]
[340131242,1728666447491,-242.38863337,0.00041247,2]
[340131244,1728666504184,5000.0,0.0004,50]
[340131269,1728666631884,-166.666666,0.00040943,2]
[340131272,1728666631901,-7.61136663,0.00041247,2]
[340131274,1728666631915,-122.02400109,0.0004126,120]
[340131276,1728666631930,-3116.88696904,0.0004126,120]
[340131284,1728666631995,-3914.93,0.0004126,120]
[340131403,1728666638270,-2002.60491609,0.0004126,120]
[340131404,1728666638282,-7941.2592032,0.00041285,2]
[340131405,1728666638292,-250.0,0.0004136,2]
[340131406,1728666638303,-250.0,0.00041473,2]
[340131407,1728666638316,-250.0,0.00041586,2]
[340131408,1728666638327,-165.513336,0.00041653,120]
[340131409,1728666638337,-250.0,0.00041699,2]
[340131410,1728666638349,-250.0,0.00041812,2]
[340131411,1728666638361,-250.0,0.00041925,2]
[340131412,1728666638372,-744.8233497,0.00041925,2]
[340131413,1728666638382,-250.0,0.00042039,2]
[340131414,1728666638394,-250.0,0.00042152,2]
[340131415,1728666638405,-250.0,0.00042265,2]
[340131416,1728666638415,-250.0,0.00042378,2]
[340131417,1728666638425,-250.0,0.00042491,2]
[340131418,1728666638436,-250.0,0.00042604,2]
[340131419,1728666638445,-250.0,0.00042717,2]
[340131420,1728666638456,-250.0,0.0004283,2]
[340131421,1728666638467,-250.0,0.00042944,2]
[340131422,1728666638478,-250.0,0.00043057,2]
[340131423,1728666638487,-250.0,0.0004317,2]
[340131424,1728666638497,-250.0,0.00043283,2]
[340131425,1728666638506,-250.0,0.00043396,2]
[340131426,1728666638515,-1800.0,0.00043813,2]
[340131427,1728666638526,-400.0,0.00044658,2]
[340131428,1728666638535,-235.49,0.000447,2]
[340131429,1728666638545,-163.0,0.00046849,90]
[340131430,1728666638555,-163.0,0.00047,90]
[340131431,1728666638564,-9156.44588618,0.0004717,120]
[340131432,1728666638573,-266.73562195,0.0004717,60]
[340131433,1728666638583,-386.877,0.00047784,2]
[340131434,1728666638593,-153.0,0.00047973,120]
[340131435,1728666638602,-153.0,0.00047973,120]
[340131436,1728666638612,-153.0,0.00047973,120]
[340131437,1728666638751,-153.0,0.00047973,120]
[340131438,1728666638764,-153.0,0.00047973,120]
[340131439,1728666638775,-153.0,0.00047973,120]
[340131440,1728666638786,-153.0,0.00047974,120]
[340131441,1728666638798,-153.0,0.00047974,120]
[340131442,1728666638808,-153.0,0.00047974,120]
[340131443,1728666638820,-153.0,0.00047974,120]
[340131444,1728666638835,-153.0,0.00047982,120]
[340131445,1728666638845,-3597.55241654,0.00048,2]
[340131447,1728666640044,-3828.02592746,0.00048,2]
[340131448,1728666640054,-602.41497244,0.00048,10]
[340131449,1728666640063,-501.4254455,0.00048,10]
[340131450,1728666640074,-500.0,0.00048,10]
[340131451,1728666640086,-502.27553281,0.00048,10]
[340131452,1728666640096,-501.74755149,0.00048,7]
[340131453,1728666640106,-205.2827799,0.00048,10]
[340131454,1728666640116,-150.58263951,0.00048,10]
[340131455,1728666640125,-160.05120095,0.00048,10]
[340131456,1728666640134,-500.0,0.00048,10]
[340131457,1728666640144,-500.39460453,0.00048,10]
[340131458,1728666640154,-500.0,0.00048033,7]
[340131459,1728666640163,-500.0,0.0004805,10]
[340131460,1728666640172,-500.0,0.000481,5]
[340131461,1728666640182,-500.0,0.000481,10]
[340131462,1728666640191,-255.08044276,0.0004815,10]
[340131463,1728666640200,-163.0,0.00048904,90]
[340131464,1728666640210,-165.513336,0.00048986,120]
[340131465,1728666640219,-1000.0,0.0004937,10]
[340131466,1728666640229,-1023.86206554,0.00049403,7]
[340131467,1728666640239,-1000.0,0.0004947,30]
[340131468,1728666640248,-500.0,0.0004947,5]
[340131469,1728666640257,-507.39123115,0.0004947,10]
[340131470,1728666640267,-400.0,0.00049517,2]
[340131471,1728666640276,-1000.0,0.00049517,30]
[340131472,1728666640285,-191.333,0.0005,120]
[340131473,1728666640295,-191.333,0.0005,120]
[340131474,1728666640304,-191.334,0.0005,120]
[340131475,1728666640314,-151.0,0.00050287,60]
[340131476,1728666640325,-803.33573327,0.00051349,30]
[340131477,1728666640337,-196.66426673,0.00051349,30]
[340131478,1728666640346,-165.0,0.00051349,120]
[340131479,1728666640355,-222.736,0.00051983,30]
[340131480,1728666640365,-300.0,0.00051983,30]
[340131481,1728666640374,-1000.0,0.00052,120]
[340131482,1728666640383,-317.40461023,0.00052054,30]
[340131483,1728666640393,-151.0,0.00052731,90]
[340131484,1728666640404,-600.0,0.000528,2]
[340131485,1728666640413,-500.0,0.00053,10]
[340131486,1728666640422,-500.0,0.00053,10]
[340131487,1728666640432,-9156.44588618,0.0005308,120]
[340131488,1728666640441,-600.0,0.0005335,2]
[340131489,1728666640451,-601.56927212,0.000539,2]
[340131490,1728666640461,-500.0,0.00054369,120]
[340131491,1728666640470,-164.26488738,0.00054369,120]
[340131492,1728666640479,-500.0,0.00054369,120]
[340131493,1728666640488,-500.0,0.00054369,120]
[340131494,1728666640498,-270.48311654,0.00054369,120]
[340131495,1728666640507,-500.0,0.00054369,120]
[340131496,1728666640517,-500.0,0.00054369,120]
[340131497,1728666640527,-500.0,0.00054369,120]
[340131498,1728666640536,-500.0,0.00054369,120]
[340131499,1728666640545,-500.0,0.00054369,120]
[340131500,1728666640554,-500.0,0.00054369,120]
[340131501,1728666640563,-500.0,0.00054369,120]
[340131502,1728666640574,-585.52809797,0.00054369,120]
[340131503,1728666640583,-500.0,0.0005437,10]
[340131504,1728666640593,-1000.0,0.0005437,10]
[340131505,1728666640602,-400.0,0.00054376,2]
[340131506,1728666640612,-154.43334356,0.00054402,96]
[340131507,1728666640621,-2000.0,0.00054668,120]
[340131508,1728666640630,-268.56100965,0.00054755,31]
[340131509,1728666640639,-252.2871494,0.00054755,120]
[340131510,1728666640649,-500.0,0.00054755,120]
[340131511,1728666640659,-500.0,0.00054755,120]
[340131512,1728666640668,-262.09807619,0.00054755,120]
[340131513,1728666640678,-252.60439081,0.00054755,120]
[340131514,1728666640688,-166.04384725,0.00054755,120]
[340131515,1728666640697,-500.0,0.00054755,120]
[340131516,1728666640706,-120404.11195,0.00054756,30]
[340131517,1728666640715,-5876.40200442,0.00054758,8]
[340131518,1728666640725,-17001.5543459,0.00054758,8]
[340131519,1728666640734,-2588.56054527,0.00054767,120]
[340131520,1728666640743,-105551.66105435,0.00054768,2]
[340131521,1728666640753,-500.0,0.00054773,10]
[340131522,1728666640763,-575.99229912,0.00054773,10]
[340131523,1728666640772,-500.0,0.00054773,10]
[340131524,1728666640781,-8814.60300663,0.00054784,8]
[340131525,1728666640790,-25502.3315189,0.00054784,8]
[340131526,1728666640801,-503.72179621,0.00054794,2]
[340131527,1728666640812,-184.93726484,0.00054794,120]
[340131528,1728666640821,-500.0,0.00054794,120]
[340131529,1728666640833,-500.0,0.00054794,120]
[340131530,1728666640844,-582.39,0.00054794,120]
[340131531,1728666640855,-500.0,0.00054794,120]
[340131532,1728666640866,-636.55,0.00054794,120]
[340131533,1728666640881,-1351.2,0.00054794,120]
[340131534,1728666640892,-500.0,0.00054794,120]
[340131535,1728666640903,-500.0,0.00054794,120]
[340131536,1728666640912,-500.0,0.00054794,120]
[340131537,1728666640923,-500.0,0.00054794,120]
[340131538,1728666640933,-500.0,0.00054794,120]
[340131539,1728666640942,-500.0,0.00054794,120]
[340131540,1728666640954,-500.0,0.00054794,120]
[340131541,1728666640964,-500.0,0.00054794,120]
[340131542,1728666640973,-262.4265211,0.00054794,120]
[340131543,1728666640982,-500.0,0.00054794,120]
[340131544,1728666640994,-500.0,0.00054794,2]
[340131545,1728666641006,-500.0,0.00054794,2]
[340131546,1728666641017,-500.0,0.00054794,2]
[340131547,1728666641026,-500.0,0.00054794,2]
[340131548,1728666641038,-500.0,0.00054794,2]
[340131549,1728666641049,-500.0,0.00054794,2]
[340131550,1728666641060,-500.0,0.00054794,2]
[340131551,1728666641073,-437.12537325,0.00054794,2]
[340131552,1728666641083,-1000.0,0.00054794,120]
[340131553,1728666641094,-350.04928199,0.00054794,120]
[340131554,1728666641104,-500.0,0.00054794,7]
[340131555,1728666641115,-509.94715144,0.00054794,120]
[340131556,1728666641127,-500.0,0.00054794,120]
[340131557,1728666641139,-500.0,0.00054794,120]
[340131558,1728666641148,-500.0,0.00054794,2]
[340131559,1728666641159,-500.0,0.00054794,120]
[340131560,1728666641169,-500.0,0.00054794,120]
[340131561,1728666641180,-500.0,0.00054794,120]
[340131562,1728666641190,-515.91359152,0.00054794,120]
[340131563,1728666641201,-500.0,0.00054794,120]
[340131564,1728666641211,-500.0,0.00054794,120]
[340131565,1728666641222,-500.0,0.00054794,120]
[340131566,1728666641233,-500.0,0.00054794,120]
[340131567,1728666641243,-500.0,0.00054794,120]
[340131568,1728666641254,-500.0,0.00054794,120]
[340131569,1728666641264,-557.22639201,0.00054794,120]
[340131570,1728666641274,-500.00094351,0.00054794,120]
[340131571,1728666641285,-500.0,0.00054794,120]
[340131572,1728666641295,-1034.31,0.00054794,120]
[340131573,1728666641307,-500.0,0.00054794,120]
[340131574,1728666641318,-972.91,0.00054794,120]
[340131575,1728666641328,-500.0,0.00054794,120]
[340131576,1728666641339,-574.67392585,0.00054794,120]
[340131577,1728666641351,-500.0,0.00054794,120]
[340131578,1728666641361,-710.64,0.00054794,30]
[340131579,1728666641371,-569.03,0.00054794,120]
[340131580,1728666641382,-500.0,0.00054794,120]
[340131581,1728666641393,-500.0,0.00054794,120]
[340131582,1728666641405,-500.0,0.00054794,120]
[340131583,1728666641414,-500.0,0.00054794,120]
[340131584,1728666641424,-500.0,0.00054794,120]
[340131585,1728666641435,-619.17370486,0.00054794,120]
[340131586,1728666641445,-500.0,0.00054794,120]
[340131587,1728666641455,-500.0,0.00054794,120]
[340131588,1728666641467,-500.0,0.00054794,120]
[340131589,1728666641477,-500.0,0.00054794,120]
[340131590,1728666641488,-500.0,0.00054794,120]
[340131591,1728666641500,-529.78603565,0.00054794,120]
[340131592,1728666641510,-500.0,0.00054794,120]
[340131593,1728666641521,-1252.63,0.00054794,120]
[340131594,1728666641534,-500.0,0.00054794,30]
[340131595,1728666641546,-500.0,0.00054794,120]
[340131596,1728666641558,-500.0,0.00054794,120]
[340131597,1728666641567,-500.0,0.00054794,120]
[340131598,1728666641579,-500.0,0.00054794,120]
[340131599,1728666641589,-1469.99,0.00054794,120]
[340131600,1728666641600,-1502.23,0.00054794,120]
[340131601,1728666641613,-500.0,0.00054794,2]
[340131602,1728666641622,-500.0,0.00054794,120]
[340131603,1728666641634,-500.0,0.00054794,120]
[340131604,1728666641645,-500.0,0.00054794,120]
[340131605,1728666641657,-1702.29,0.00054794,2]
[340131606,1728666641667,-1702.29,0.00054794,2]
[340131607,1728666641677,-1702.29,0.00054794,2]
[340131608,1728666641688,-1702.29,0.00054794,2]
[340131609,1728666641700,-1702.29,0.00054794,2]
[340131610,1728666641710,-1702.29,0.00054794,2]
[340131611,1728666641719,-1702.29,0.00054794,2]
[340131612,1728666641731,-1702.29,0.00054794,2]
[340131613,1728666641741,-1702.29,0.00054794,2]
[340131614,1728666641752,-1702.29,0.00054794,2]
[340131615,1728666641761,-1702.29,0.00054794,2]
[340131616,1728666641771,-1702.29,0.00054794,2]
[340131617,1728666641781,-1702.29,0.00054794,2]
[340131618,1728666641792,-1702.29,0.00054794,2]
[340131619,1728666641803,-1702.29,0.00054794,2]
[340131620,1728666641815,-1702.29,0.00054794,2]
[340131621,1728666641824,-1702.29,0.00054794,2]
[340131622,1728666641833,-1702.29,0.00054794,2]
[340131623,1728666641842,-500.0,0.00054794,120]
[340131624,1728666641851,-500.0,0.00054794,120]
[340131625,1728666641860,-500.0,0.00054794,2]
[340131626,1728666641872,-658.49,0.00054794,120]
[340131627,1728666641883,-838.04,0.00054794,120]
[340131628,1728666641894,-500.0,0.00054794,120]
[340131629,1728666641904,-500.0,0.00054794,120]
[340131630,1728666641914,-500.0,0.00054794,120]
[340131631,1728666641924,-500.0,0.00054794,120]
[340131632,1728666641933,-500.0,0.00054794,7]
[340131633,1728666641946,-500.0,0.00054794,2]
[340131634,1728666641957,-500.0,0.00054794,120]
[340131635,1728666641967,-391.45919923,0.00054794,120]
[340131636,1728666641977,-532.40105564,0.00054794,120]
[340131637,1728666641986,-558.45,0.00054794,120]
[340131638,1728666641996,-500.0,0.00054794,120]
[340131639,1728666642005,-500.0,0.00054794,120]
[340131640,1728666642014,-500.0,0.00054794,120]
[340131641,1728666642023,-500.0,0.00054794,120]
[340131642,1728666642035,-300.0,0.00054794,120]
[340131643,1728666642046,-416.30358869,0.00054794,120]
[340131644,1728666642058,-500.0,0.00054794,120]
[340131645,1728666642070,-547.89,0.00054794,120]
[340131646,1728666642080,-719.72,0.00054794,120]
[340131647,1728666642089,-507.982,0.00054794,120]
[340131648,1728666642098,-250.0,0.00054794,120]
[340131649,1728666642108,-500.0,0.00054794,120]
[340131650,1728666642119,-500.0,0.00054794,120]
[340131651,1728666642129,-500.0,0.00054794,120]
[340131652,1728666642139,-563.57,0.00054794,120]
[340131653,1728666642150,-500.0,0.00054794,120]
[340131654,1728666642160,-500.0,0.00054794,120]
[340131655,1728666642171,-785.83,0.00054794,120]
[340131656,1728666642180,-500.0,0.00054794,120]
[340131657,1728666642192,-646.11,0.00054794,120]
[340131658,1728666642202,-500.0,0.00054794,120]
[340131659,1728666642213,-500.0,0.00054794,120]
[340131660,1728666642223,-200.0,0.00054794,120]
[340131661,1728666642233,-168.79996511,0.00054794,120]
[340131662,1728666642245,-500.0,0.00054794,120]
[340131663,1728666642254,-500.0,0.00054794,120]
[340131664,1728666642263,-500.0,0.00054794,120]
[340131665,1728666642272,-638.52,0.00054794,120]
[340131666,1728666642283,-1250.0,0.00054794,120]
[340131667,1728666642294,-500.0,0.00054794,120]
[340131668,1728666642305,-500.0,0.00054794,120]
[340131669,1728666642314,-260.29031314,0.00054794,120]
[340131670,1728666642326,-888.0,0.00054794,120]
[340131671,1728666642336,-500.0,0.00054794,120]
[340131672,1728666642347,-500.0,0.00054794,120]
[340131673,1728666642358,-739.25,0.00054794,120]
[340131674,1728666642367,-500.0,0.00054794,120]
[340131676,1728666642377,-1373.39,0.00054794,120]
[340131678,1728666642387,-500.0,0.00054794,120]
[340131682,1728666642397,-598.42,0.00054794,120]
[340131683,1728666642491,-500.0,0.00054794,120]
[340131684,1728666642502,-500.0,0.00054794,120]
[340131685,1728666642513,-151.0,0.00054794,120]
[340131686,1728666642522,-500.0,0.00054794,120]
[340131687,1728666642532,-500.0,0.00054794,120]
[340131688,1728666642543,-500.0,0.00054794,120]
[340131689,1728666642555,-500.0,0.00054794,120]
[340131690,1728666642564,-500.0,0.00054794,120]
[340131691,1728666642575,-6776.64,0.00054794,120]
[340131692,1728666642586,-500.0,0.00054794,120]
[340131693,1728666642596,-8714.17,0.00054794,18]
[340131694,1728666642609,-500.0,0.00054794,120]
[340131695,1728666642620,-302.11958062,0.00054794,120]
[340131696,1728666642632,-500.0,0.00054794,120]
[340131697,1728666642643,-500.0,0.00054794,2]
[340131699,1728666642655,-500.0,0.00054794,120]
[340131701,1728666642665,-500.0,0.00054794,120]
[340131704,1728666642676,-500.0,0.00054794,120]
[340131705,1728666642687,-626.29,0.00054794,120]
[340131708,1728666642697,-650.96,0.00054794,2]
[340131710,1728666642707,-500.0,0.00054794,120]
[340131711,1728666642716,-500.0,0.00054794,120]
[340131712,1728666642725,-150.07814443,0.00054794,2]
[340131713,1728666642735,-500.0,0.00054794,2]
[340131714,1728666642744,-500.0,0.00054794,120]
[340131715,1728666642754,-500.0,0.00054794,120]
[340131716,1728666642763,-150.4,0.00054795,30]
[340131717,1728666642772,-34126.75564922,0.000548,120]
[340131718,1728666642782,-500.0,0.00054873,7]
[340131719,1728666642791,-5876.40200442,0.0005489,8]
[340131720,1728666642800,-17001.5543459,0.0005489,8]
[340131721,1728666642809,-151.0,0.000549,120]
[340131722,1728666642818,-2938.20100221,0.0005499,8]
[340131723,1728666642828,-8500.77717297,0.0005499,8]
[340131724,1728666642837,-1702.29,0.00054999,2]
[340131725,1728666642846,-1702.29,0.00054999,2]
[340131726,1728666642855,-1702.29,0.00054999,2]
[340131727,1728666642865,-1702.29,0.00054999,2]
[340131728,1728666642878,-1702.29,0.00054999,2]
[340131729,1728666642888,-1702.40760876,0.00054999,2]
[340131730,1728666642897,-1482.42693556,0.00055,120]
[340131731,1728666642907,-7860.44756847,0.00055,120]
[340131733,1728666643432,-371.89,0.00054746,10]
[340131734,1728666643442,-558.729816,0.00055,120]
[340131735,1728666643608,-2224.59522124,0.00055,120]
[340131738,1728666688748,167.871076,0.00026986,2]
[340131739,1728666689453,167.871076,0.00036153,2]
[340131741,1728666731352,-211.94,0.00045,2]
[340131742,1728666731376,-167.871076,0.0004532,120]
[340131743,1728666731401,-180.673502,0.00045934,2]
[340131744,1728666731430,-160.0,0.00047,90]
[340131745,1728666731458,-153.0,0.00047799,120]
[340131746,1728666731483,-153.0,0.00047799,120]
[340131747,1728666731508,-153.0,0.00047799,120]
[340131748,1728666731533,-153.0,0.00047799,120]
[340131749,1728666731557,-153.0,0.00047799,120]
[340131750,1728666731581,-153.0,0.00047799,120]
[340131751,1728666731605,-153.0,0.00047799,120]
[340131752,1728666731631,-180.673502,0.00048327,2]
[340131753,1728666731655,-160.0,0.00048904,90]
[340131754,1728666731681,-160.0,0.00051349,120]
[340131755,1728666731709,-436.142,0.00053233,30]
[340131756,1728666731733,-7271.69992,0.00054,120]
[340131757,1728666732425,-4600.95909333,0.00054,120]
[340131758,1728666732452,-167.871076,0.00054486,120]
[340131759,1728666732477,-1000.0,0.00054668,120]
[340131760,1728666732502,-2000.0,0.000547,120]
[340131761,1728666732526,-151.0,0.00054794,120]
[340131762,1728666732552,-500.0,0.00054794,120]
[340131763,1728666732578,-500.0,0.00054794,120]
[340131764,1728666732602,-400.0,0.00054794,120]
[340131765,1728666732626,-500.0,0.00054794,120]
[340131766,1728666732650,-180.16983067,0.00054794,120]
[340131767,1728666733746,-319.83016933,0.00054794,120]
[340131768,1728666733774,-500.0,0.00054794,120]
[340131769,1728666733800,-500.0,0.00054794,120]
[340131770,1728666733826,-500.0,0.00054794,120]
[340131771,1728666733851,-540.09,0.00054794,120]
[340131772,1728666733875,-500.0,0.00054794,120]
[340131773,1728666733901,-500.0,0.00054794,120]
[340131774,1728666733926,-619.18,0.00054794,120]
[340131775,1728666733950,-610.03,0.00054794,120]
[340131776,1728666733976,-558.12,0.00054794,120]
[340131777,1728666734001,-991.22,0.00054794,120]
[340131778,1728666734025,-500.0,0.00054794,120]
[340131779,1728666734050,-500.0,0.00054794,120]
[340131780,1728666734075,-611.91,0.00054794,120]
[340131781,1728666734098,-500.0,0.00054794,120]
[340131782,1728666734121,-681.03,0.00054794,30]
[340131783,1728666734145,-151.0,0.0005489,120]
[340131784,1728666734168,-151.0,0.000549,120]
[340131785,1728666734192,-766.58983067,0.00055,120]
[340131786,1728666735272,-10000.0,0.00055,120]
[340131787,1728666737094,-10000.0,0.00055,120]
[340131792,1728667184869,167.871076,0.00026986,2]
[340131798,1728667635132,-167.871076,0.00040736,2]
[340131799,1728667635158,-251.0,0.00041596,2]
[340131800,1728667635184,-647.1796036,0.00043398,2]
[340131804,1728667689474,167.871076,0.00026986,2]
[340131805,1728667721476,9688.95806963,0.00025,2]
[340131806,1728667721501,25000.0,0.00025,2]
[340131807,1728667721527,25000.0,0.00025,2]
[340131808,1728667721553,25000.0,0.00025,2]
[340131809,1728667721578,25000.0,0.00025,2]
[340131810,1728667721604,25000.0,0.00025,2]
[340131811,1728667721630,25000.0,0.00025,2]
[340131812,1728667721654,25000.0,0.00025,2]
[340131813,1728667721682,451294.28624429,0.00025,2]
[340131814,1728667721717,74704.04388441,0.00025,2]
[340131815,1728667723075,56652.1838421,0.00025,2]
[340131986,1728667840150,-400.0,0.00039879,5]
[340131987,1728667840160,-17937.88675928,0.0003988,120]
[340131988,1728667840171,-226.63888102,0.0003988,120]
[340131989,1728667840181,-7410.0639742,0.00043488,2]
[340131990,1728667840190,-400.0,0.00044658,2]
[340131991,1728667840202,-190.75,0.00045,2]
[340131992,1728667840212,-167.871076,0.0004532,120]
[340131993,1728667840223,-16095.21244477,0.00046,60]
[340131994,1728667840235,-177.82374797,0.00046,60]
[340131995,1728667840245,-3055.7020532,0.000469,28]
[340131996,1728667840256,-160.0,0.00047,90]